bitfinex-derivatives/quotes_BTCF0:USTF0_20250711
["timestamp","ask_amount","ask_price","bid_price","bid_amount"]
[1752256289982,0.06598113,117530.0,117520.0,1.9643867]
[1752256290384,0.005,117530.0,117520.0,1.9643867]
[1752256290686,0.005,117530.0,117520.0,2.4643867]
[1752256290872,0.0659913,117530.0,117520.0,2.4643867]
[1752256291288,0.0629913,117530.0,117520.0,2.4643867]
[1752256291477,0.002,117530.0,117520.0,2.4643867]
[1752256291774,0.06100275,117530.0,117520.0,2.4643867]
[1752256292179,0.82762034,117550.0,117520.0,2.4643867]
[1752256292180,0.63942674,117550.0,117540.0,0.3667756]
[1752256292382,0.27862674,117550.0,117540.0,2.19127603]
[1752256292579,0.44870784,117550.0,117540.0,2.19127603]
[1752256293280,0.08143674,117550.0,117540.0,2.38204603]
[1752256293487,0.0052,117550.0,117540.0,2.55207603]
[1752256293987,0.0804682,117550.0,117540.0,2.62003916]
[1752256294684,0.0804682,117550.0,117540.0,3.12003916]
[1752256294883,0.0784682,117550.0,117540.0,3.12003916]
[1752256295084,0.65679845,117570.0,117560.0,0.2665666]
[1752256295381,0.28046541,117570.0,117560.0,2.09106703]
[1752256295983,0.28046541,117570.0,117560.0,2.09006703]
[1752256296288,0.20419,117570.0,117560.0,2.09006703]
[1752256296490,0.20419,117570.0,117560.0,2.59006703]
[1752256296689,0.20619,117570.0,117560.0,2.59006703]
[1752256298888,0.20919,117570.0,117560.0,2.59006703]
[1752256299982,0.007,117570.0,117560.0,2.95754394]
[1752256302997,0.06792744,117570.0,117560.0,2.95754394]
[1752256305387,0.007,117570.0,117560.0,2.95754394]
[1752256320805,0.06792744,117570.0,117560.0,2.95754394]
[1752256321011,0.06812744,117570.0,117560.0,3.28986909]
[1752256321701,0.27679158,117590.0,117580.0,0.1700377]
[1752256321910,0.25241158,117590.0,117580.0,1.94924549]
[1752256322103,0.17626,117590.0,117580.0,1.94924549]
[1752256322305,0.20064,117590.0,117580.0,1.94924549]
[1752256322899,0.20964,117590.0,117580.0,1.94924549]
[1752256323400,0.20364,117590.0,117580.0,1.94924549]
[1752256323603,0.20264,117590.0,117580.0,1.94924549]
[1752256324804,0.27879158,117590.0,117580.0,1.94924549]
[1752256325005,0.27879158,117590.0,117580.0,2.44924549]
[1752256325801,0.18353158,117590.0,117580.0,2.81004549]
[1752256326006,0.10738,117590.0,117580.0,2.81004549]
[1752256327104,0.10538,117590.0,117580.0,2.81204549]
[1752256328514,0.09526,117600.0,117590.0,0.1700232]
[1752256328701,0.09526,117600.0,117590.0,2.30975099]
[1752256328702,0.20064,117600.0,117590.0,2.30975099]
[1752256328907,0.20064,117600.0,117590.0,1.77892099]
[1752256329813,0.20064,117600.0,117590.0,1.94895099]
[1752256330511,0.20064,117600.0,117590.0,2.44895099]
[1752256331208,0.20064,117600.0,117590.0,2.80975099]
[1752256331712,0.26164359,117600.0,117590.0,2.80975099]
[1752256332615,0.26164359,117600.0,117590.0,2.4086332]
[1752256332806,0.26164359,117600.0,117590.0,2.80975099]
[1752256333816,0.26164359,117600.0,117590.0,2.4086332]
[1752256334017,0.26164359,117600.0,117590.0,2.80975099]
[1752256334418,0.20064,117600.0,117590.0,2.80975099]
[1752256335312,0.20064,117600.0,117590.0,2.4086332]
[1752256335616,0.20064,117600.0,117590.0,2.44895099]
[1752256336025,0.20064,117600.0,117590.0,2.0478332]
[1752256336213,0.20064,117600.0,117590.0,2.44895099]
[1752256337315,1.13256649,117600.0,117590.0,0.6700232]
[1752256337515,1.20880975,117600.0,117590.0,1.2615432]
[1752256337721,1.13256649,117600.0,117590.0,1.2615432]
[1752256338219,1.23933953,117600.0,117590.0,1.2615432]
[1752256338519,1.23953953,117600.0,117590.0,1.2617432]
[1752256339219,1.24053953,117600.0,117590.0,1.2617432]
[1752256339420,0.66941304,117600.0,117590.0,1.2617432]
[1752256339617,0.66941304,117600.0,117590.0,1.2866232]
[1752256340122,0.66941304,117600.0,117590.0,1.68774099]
[1752256340419,0.83942174,117600.0,117590.0,1.2866232]
[1752256341120,0.56264,117600.0,117590.0,1.2866232]
[1752256341616,0.62365171,117600.0,117590.0,1.85777099]
[1752256342215,0.62365171,117600.0,117590.0,1.35777099]
[1752256344821,0.63890464,117600.0,117590.0,1.35777099]
[1752256345021,0.80891344,117600.0,117590.0,1.35777099]
[1752256345821,0.63890464,117600.0,117590.0,1.35777099]
[1752256348923,0.64090464,117600.0,117590.0,0.9566532]
[1752256349120,1.13576649,117600.0,117590.0,1.3530232]
[1752256349520,1.24253953,117600.0,117590.0,1.3530232]
[1752256351526,0.84142174,117600.0,117590.0,1.3779032]
[1752256351725,1.24253953,117600.0,117590.0,1.3779032]
[1752256352021,0.84142174,117600.0,117590.0,1.3779032]
[1752256352231,0.84142174,117600.0,117590.0,1.3530232]
[1752256353525,0.7346487,117600.0,117590.0,1.3530232]
[1752256354826,1.13576649,117600.0,117590.0,1.3530232]
[1752256355323,0.56464,117600.0,117590.0,1.77902099]
[1752256355524,0.64099115,117600.0,117590.0,1.77902099]
[1752256355922,0.64099115,117600.0,117590.0,1.94905099]
[1752256356232,0.56323,117600.0,117590.0,1.94905099]
[1752256357129,0.63958719,117600.0,117590.0,1.94905099]
[1752256361033,0.67000304,117600.0,117590.0,1.94905099]
[1752256363930,0.67000304,117600.0,117590.0,0.76625099]
[1752256367931,0.30920304,117600.0,117590.0,0.76625099]
[1752256368135,0.21535304,117600.0,117590.0,1.94845099]
[1752256368335,0.10997304,117600.0,117590.0,1.94845099]
[1752256368533,0.10997304,117600.0,117590.0,2.30925099]
[1752256368832,0.06419373,117600.0,117590.0,2.30925099]
[1752256369033,0.06419373,117600.0,117590.0,2.71036878]
[1752256369333,0.06419373,117600.0,117590.0,3.21036878]
[1752256369934,0.06119373,117600.0,117590.0,3.21036878]
[1752256370132,0.0002,117600.0,117590.0,2.80925099]
[1752256370334,0.07644216,117600.0,117590.0,2.80925099]
[1752256370534,0.07644216,117600.0,117590.0,2.81025099]
[1752256370836,0.06118759,117600.0,117590.0,2.81125099]
[1752256371238,0.0002,117600.0,117590.0,2.81125099]
[1752256372441,0.10286,117600.0,117590.0,2.4101332]
[1752256372735,0.25351759,117600.0,117590.0,2.45045099]
[1752256373631,0.25351759,117600.0,117590.0,2.81125099]
[1752256374539,0.19253,117600.0,117590.0,2.81125099]
[1752256380040,0.10286,117600.0,117590.0,2.81125099]
[1752256380340,0.0002,117600.0,117590.0,2.81125099]
[1752256381140,0.10286,117600.0,117590.0,2.81125099]
[1752256384036,0.0002,117600.0,117590.0,2.81125099]
[1752256385037,0.10286,117600.0,117590.0,2.81125099]
[1752256386348,0.0002,117600.0,117590.0,2.81125099]
[1752256387041,0.10286,117600.0,117590.0,2.81125099]
[1752256387650,0.0002,117600.0,117590.0,3.21236878]
[1752256389256,0.0002,117600.0,117590.0,2.81125099]
[1752256390352,0.0018,117610.0,117600.0,0.1700088]
[1752256390651,0.18693759,117630.0,117620.0,0.1944698]
[1752256390852,0.16364759,117630.0,117620.0,2.30769759]
[1752256391260,0.18693759,117630.0,117620.0,2.30769759]
[1752256391464,0.16364759,117630.0,117620.0,2.30769759]
[1752256391756,0.06098759,117630.0,117620.0,2.13766759]
[1752256392054,0.16364759,117640.0,117630.0,0.1944554]
[1752256392250,0.10266,117640.0,117630.0,0.76560319]
[1752256392658,0.10266,117640.0,117630.0,0.59357319]
[1752256392859,0.10266,117640.0,117630.0,0.76360319]
[1752256393260,0.10566,117640.0,117630.0,0.76360319]
[1752256393761,0.10566,117640.0,117630.0,0.77083917]
[1752256394056,0.16664759,117640.0,117630.0,1.27083917]
[1752256394360,0.10866,117640.0,117630.0,1.27083917]
[1752256394754,0.10566,117640.0,117630.0,1.27083917]
[1752256394956,0.10666,117640.0,117630.0,1.27083917]
[1752256395958,0.16764759,117640.0,117630.0,1.27083917]
[1752256397261,0.16764759,117640.0,117630.0,1.33800411]
[1752256398163,0.10666,117640.0,117630.0,1.33800411]
[1752256398862,0.13143,117640.0,117630.0,0.93688632]
[1752256399061,0.19241759,117640.0,117630.0,1.33800411]
[1752256399256,0.13143,117640.0,117630.0,1.33800411]
[1752256399460,0.10666,117640.0,117630.0,1.33800411]
[1752256400757,0.16764759,117640.0,117630.0,1.33800411]
[1752256401263,0.19241759,117640.0,117630.0,1.33800411]
[1752256401458,0.06498759,117640.0,117630.0,1.69880411]
[1752256401764,0.002,117650.0,117640.0,0.169951]
[1752256401966,0.02477,117670.0,117660.0,0.1699222]
[1752256402163,0.06098759,117680.0,117670.0,0.1699077]
[1752256402164,0.02477,117680.0,117670.0,0.1699077]
[1752256402355,0.02677,117690.0,117680.0,0.1698933]
[1752256402562,0.10902,117690.0,117680.0,2.13526109]
[1752256402858,0.10902,117690.0,117680.0,2.70440888]
[1752256403061,0.10902,117690.0,117680.0,2.30329109]
[1752256403466,0.13379,117690.0,117680.0,2.29729109]
[1752256403969,0.13779,117690.0,117680.0,2.79729109]
[1752256404164,0.006,117690.0,117680.0,3.02837888]
[1752256404469,0.20107,117710.0,117700.0,0.1925544]
[1752256404659,0.20107,117710.0,117700.0,1.77123219]
[1752256404861,0.20107,117710.0,117700.0,1.76923219]
[1752256405770,0.20207,117710.0,117700.0,2.26923219]
[1752256405961,0.20207,117710.0,117700.0,2.44666968]
[1752256406159,0.20207,117710.0,117700.0,2.45066968]
[1752256407766,0.20207,117710.0,117700.0,2.04955189]
[1752256407967,0.20227,117710.0,117700.0,2.45086968]
[1752256408366,0.20227,117710.0,117700.0,2.04975189]
[1752256408562,0.56307,117710.0,117700.0,2.45086968]
[1752256409468,0.56307,117710.0,117700.0,2.51902439]
[1752256410167,1.13403779,117710.0,117700.0,1.9251866]
[1752256410374,0.96418779,117710.0,117700.0,1.9251866]
[1752256410673,0.56307,117710.0,117700.0,1.9251866]
[1752256410863,0.56307,117710.0,117700.0,2.34899439]
[1752256411372,0.20227,117710.0,117700.0,2.01902439]
[1752256411871,0.20227,117710.0,117700.0,2.37982439]
[1752256412068,0.10822,117710.0,117700.0,2.37982439]
[1752256412971,0.10822,117710.0,117700.0,2.01902439]
[1752256413171,0.13299,117710.0,117700.0,2.87982439]
[1752256414971,0.20227,117710.0,117700.0,2.87982439]
[1752256415274,0.20127,117710.0,117700.0,2.88082439]
[1752256418169,0.20127,117710.0,117700.0,2.4797066]
[1752256418373,0.20127,117710.0,117700.0,2.88082439]
[1752256418873,0.20127,117710.0,117700.0,2.52002439]
[1752256421069,0.37112,117710.0,117700.0,2.51906439]
[1752256421475,0.73192,117710.0,117700.0,2.51906439]
[1752256422074,0.73192,117710.0,117700.0,1.4252266]
[1752256422773,1.13303779,117710.0,117700.0,1.42277911]
[1752256422975,0.96318779,117710.0,117700.0,1.42277911]
[1752256423175,0.56207,117710.0,117700.0,1.44546911]
[1752256423676,0.56207,117710.0,117700.0,1.8465869]
[1752256424074,0.56207,117710.0,117700.0,1.85403054]
[1752256424474,0.73192,117710.0,117700.0,1.43022275]
[1752256425274,0.56207,117710.0,117700.0,1.43022275]
[1752256426679,0.73192,117710.0,117700.0,1.43022275]
[1752256426877,0.73192,117710.0,117700.0,1.42277911]
[1752256427075,1.13303779,117710.0,117700.0,1.42277911]
[1752256427276,0.96318779,117710.0,117700.0,1.42277911]
[1752256427474,0.56207,117710.0,117700.0,1.42277911]
[1752256427675,0.56207,117710.0,117700.0,1.43014626]
[1752256428180,0.73192,117710.0,117700.0,1.43014626]
[1752256428377,0.56207,117710.0,117700.0,1.43014626]
[1752256428679,0.56207,117710.0,117700.0,1.85408405]
[1752256430680,0.73192,117710.0,117700.0,1.43014626]
[1752256430882,1.13303779,117710.0,117700.0,1.42277911]
[1752256431381,1.19402538,117710.0,117700.0,1.42277911]
[1752256432183,0.79290759,117710.0,117700.0,1.42277911]
[1752256432774,0.62305759,117710.0,117700.0,1.42277911]
[1752256433082,0.62305759,117710.0,117700.0,1.8467169]
[1752256433282,0.62305759,117710.0,117700.0,1.44559911]
[1752256433478,0.62305759,117710.0,117700.0,2.0167469]
[1752256437686,0.5373,117710.0,117700.0,2.0167469]
[1752256437883,0.46802,117710.0,117700.0,2.0167469]
[1752256438588,0.10722,117710.0,117700.0,2.0167469]
[1752256438787,0.10722,117710.0,117700.0,2.3775469]
[1752256438984,0.13195,117710.0,117700.0,2.0167469]
[1752256439284,0.19907,117710.0,117700.0,2.0167469]
[1752256439890,0.10722,117710.0,117700.0,2.0167469]
[1752256440384,0.0002,117710.0,117700.0,2.3775469]
[1752256440584,0.0975,117710.0,117700.0,2.3775469]
[1752256441692,0.0975,117710.0,117700.0,2.8775469]
[1752256442886,0.0975,117710.0,117700.0,2.5167469]
[1752256446191,0.15848759,117710.0,117700.0,2.5167469]
[1752256446898,0.0975,117710.0,117700.0,2.5167469]
[1752256448898,0.0975,117710.0,117700.0,2.8775469]
[1752256450295,0.0975,117710.0,117700.0,2.11562911]
[1752256450490,0.25033759,117710.0,117700.0,2.5167469]
[1752256450788,0.61113759,117710.0,117700.0,2.5167469]
[1752256450993,0.61113759,117710.0,117700.0,2.09280911]
[1752256450994,1.01225538,117710.0,117700.0,2.09280911]
[1752256451193,1.18210538,117710.0,117700.0,1.92277911]
[1752256451597,1.18210538,117710.0,117700.0,1.42277911]
[1752256451798,0.18935,117710.0,117700.0,2.2075169]
[1752256451997,0.0975,117710.0,117700.0,2.3775469]
[1752256452703,0.0975,117710.0,117700.0,2.7075169]
[1752256453008,0.0975,117710.0,117700.0,2.8775469]
[1752256453805,0.15848759,117710.0,117700.0,2.8775469]
[1752256455204,0.15848759,117710.0,117700.0,2.3467169]
[1752256455205,0.61113759,117710.0,117700.0,2.3467169]
[1752256455496,0.61113759,117710.0,117700.0,2.5167469]
[1752256456097,0.55015,117710.0,117700.0,2.0167469]
[1752256458906,0.18935,117710.0,117700.0,2.0167469]
[1752256460001,0.18935,117710.0,117700.0,1.44559911]
[1752256460306,0.61117351,117710.0,117700.0,1.44559911]
[1752256461607,0.61117351,117710.0,117700.0,1.8467169]
[1752256463209,0.78102351,117710.0,117700.0,1.8467169]
[1752256463404,0.78102351,117710.0,117700.0,1.44559911]
[1752256463703,1.1821413,117710.0,117700.0,1.44559911]
[1752256463903,1.19735995,117710.0,117700.0,1.42277911]
[1752256465706,0.79624216,117710.0,117700.0,1.8485469]
[1752256466411,0.72,117710.0,117700.0,1.44742911]
[1752256467406,0.72,117710.0,117700.0,1.8485469]
[1752256467608,0.82677304,117710.0,117700.0,1.8485469]
[1752256468106,0.65692304,117710.0,117700.0,1.8485469]
[1752256468305,0.55015,117710.0,117700.0,1.8485469]
[1752256469011,0.55015,117710.0,117700.0,2.0185769]
[1752256469212,0.65692304,117710.0,117700.0,2.0185769]
[1752256470914,0.62645807,117710.0,117700.0,2.0185769]
[1752256474419,0.79630807,117710.0,117700.0,1.61745911]
[1752256474719,1.12111779,117710.0,117700.0,1.42277911]
[1752256476417,1.12111779,117710.0,117700.0,1.44742911]
[1752256476613,0.72,117710.0,117700.0,1.44742911]
[1752256477820,1.12111779,117710.0,117700.0,1.44742911]
[1752256478119,0.79630807,117710.0,117700.0,1.44742911]
[1752256478619,0.79630807,117710.0,117700.0,1.42277911]
[1752256479221,1.19742586,117710.0,117700.0,1.42277911]
[1752256479415,1.19742586,117710.0,117700.0,1.3546244]
[1752256479619,1.36734587,117710.0,117700.0,1.3546244]
[1752256480421,1.2910378,117710.0,117700.0,1.3546244]
[1752256480619,1.39781084,117710.0,117700.0,1.3546244]
[1752256481326,1.22789083,117710.0,117700.0,1.3546244]
[1752256481622,0.82677304,117710.0,117700.0,1.3546244]
[1752256481916,0.72,117710.0,117700.0,1.3546244]
[1752256482224,1.12111779,117710.0,117700.0,1.3546244]
[1752256484725,0.72,117710.0,117700.0,1.78039219]
[1752256484928,0.79627661,117710.0,117700.0,1.78039219]
[1752256485426,0.79627661,117710.0,117700.0,1.3792744]
[1752256485624,1.1973944,117710.0,117700.0,1.3792744]
[1752256485926,0.79627661,117710.0,117700.0,1.3792744]
[1752256486729,0.72,117710.0,117700.0,1.3792744]
[1752256487125,0.79627312,117710.0,117700.0,1.3792744]
[1752256489532,0.72,117710.0,117700.0,1.3792744]
[1752256490032,0.82677304,117710.0,117700.0,1.3792744]
[1752256490532,0.72,117710.0,117700.0,1.3792744]
[1752256490729,0.82677304,117710.0,117700.0,1.3792744]
[1752256490931,1.22789083,117710.0,117700.0,1.3546244]
[1752256495133,1.22789083,117710.0,117700.0,1.3781444]
[1752256496631,1.22789083,117710.0,117700.0,0.1985844]
[1752256496935,1.22789083,117710.0,117700.0,0.7875844]
[1752256497638,1.22789083,117710.0,117700.0,0.9576144]
[1752256497838,1.30418197,117710.0,117700.0,0.9576144]
[1752256498036,1.19740893,117710.0,117700.0,0.9576144]
[1752256501037,1.22789083,117710.0,117700.0,0.9576144]
[1752256502938,0.82677304,117710.0,117700.0,0.9576144]
[1752256503140,0.82677304,117710.0,117700.0,0.9340944]
[1752256503342,1.12111779,117710.0,117700.0,0.9340944]
[1752256503640,1.18217483,117710.0,117700.0,0.9340944]
[1752256504140,1.18217483,117710.0,117700.0,0.9576144]
[1752256504341,0.82137483,117710.0,117700.0,0.9576144]
[1752256504639,1.18217483,117710.0,117700.0,0.9576144]
[1752256506240,0.15855704,117710.0,117700.0,1.35873219]
[1752256506438,0.0975,117710.0,117700.0,1.35873219]
[1752256506941,0.15859577,117710.0,117700.0,1.35873219]
[1752256507138,0.06129577,117710.0,117700.0,1.35873219]
[1752256507840,0.06129577,117710.0,117700.0,1.85873219]
[1752256508341,0.0954,117710.0,117700.0,1.85873219]
[1752256508740,0.0954,117710.0,117700.0,1.4576144]
[1752256508940,0.0954,117710.0,117700.0,1.85873219]
[1752256509144,0.15645933,117710.0,117700.0,1.85873219]
[1752256509342,0.0954,117710.0,117700.0,1.4576144]
[1752256509544,0.0954,117710.0,117700.0,1.85873219]
[1752256510142,0.15644979,117710.0,117700.0,1.85873219]
[1752256510843,0.0954,117710.0,117700.0,1.85873219]
[1752256511545,0.1855,117710.0,117700.0,1.85873219]
[1752256511747,0.0954,117710.0,117700.0,1.85873219]
[1752256512545,0.15644984,117710.0,117700.0,1.85873219]
[1752256513144,0.17944984,117710.0,117700.0,1.85873219]
[1752256513344,0.15644984,117710.0,117700.0,1.85873219]
[1752256513939,0.15644984,117710.0,117700.0,1.4576144]
[1752256514240,0.24654984,117710.0,117700.0,1.26973219]
[1752256514436,1.17831763,117710.0,117700.0,1.4573344]
[1752256514741,1.17831763,117710.0,117700.0,0.5052]
[1752256515040,1.19358909,117710.0,117700.0,0.7637844]
[1752256515243,1.19358909,117710.0,117700.0,0.0052]
[1752256515545,1.64396084,117710.0,117700.0,0.0052]
[1752256516233,0.3560544,117700.0,117690.0,0.1698777]
[1752256516439,1.81341957,117700.0,117690.0,0.1698777]
[1752256517246,1.88966254,117700.0,117690.0,0.1698777]
[1752256517548,1.79068164,117700.0,117690.0,0.1708777]
[1752256518845,1.79068164,117700.0,117690.0,0.1738777]
[1752256519146,1.82120605,117700.0,117690.0,0.1738777]
[1752256520747,1.79066004,117700.0,117690.0,0.1738777]
[1752256521647,0.62321137,117700.0,117690.0,0.1738777]
[1752256521849,0.26241137,117700.0,117690.0,0.3666177]
[1752256522143,0.7168544,117700.0,117690.0,0.3666177]
[1752256522538,1.11797219,117700.0,117690.0,0.3666177]
[1752256522949,0.7168544,117700.0,117690.0,0.3666177]
[1752256525749,0.18619,117700.0,117690.0,0.3666177]
[1752256525952,0.15617185,117700.0,117690.0,0.76773549]
[1752256526247,0.41170625,117700.0,117690.0,0.76773549]
[1752256530154,0.24184185,117700.0,117690.0,0.76773549]
[1752256530651,0.41170625,117700.0,117690.0,0.76773549]
[1752256532756,0.77250625,117700.0,117690.0,0.76773549]
[1752256532952,0.77270625,117700.0,117690.0,0.76793549]
[1752256533255,0.77270625,117700.0,117690.0,0.3668177]
[1752256533456,0.41190625,117700.0,117690.0,0.76793549]
[1752256533658,0.77270625,117700.0,117690.0,0.76793549]
[1752256534257,0.41190625,117700.0,117690.0,0.76793549]
[1752256534450,0.77270625,117700.0,117690.0,0.76793549]
[1752256534758,0.60284185,117700.0,117690.0,0.76793549]
[1752256536860,0.77270625,117700.0,117690.0,0.76793549]
[1752256538462,0.24204185,117700.0,117690.0,0.76793549]
[1752256538862,0.24204185,117700.0,117690.0,1.12873549]
[1752256539957,0.15637185,117700.0,117690.0,1.12873549]
[1752256540654,0.0002,117700.0,117690.0,1.12873549]
[1752256540864,0.0002,117700.0,117690.0,1.29866349]
[1752256540865,0.06117185,117700.0,117690.0,1.29866349]
[1752256541864,0.06117185,117700.0,117690.0,1.79866349]
[1752256542159,0.19852137,117720.0,117690.0,1.79866349]
[1752256542160,0.19852137,117720.0,117710.0,0.16985]
[1752256542368,0.18408,117720.0,117710.0,0.74249779]
[1752256542662,0.18408,117720.0,117710.0,0.57246779]
[1752256542866,0.18408,117720.0,117710.0,0.74249779]
[1752256543467,0.18408,117720.0,117710.0,1.92033779]
[1752256544655,0.18508,117720.0,117710.0,1.92033779]
[1752256544857,0.26130137,117720.0,117710.0,1.92033779]
[1752256545868,0.19952137,117720.0,117710.0,1.92033779]
[1752256546364,0.1233,117720.0,117710.0,1.92033779]
[1752256546755,0.1233,117720.0,117710.0,2.01922]
[1752256546960,0.1233,117720.0,117710.0,2.42033779]
[1752256547263,0.1233,117720.0,117710.0,2.01922]
[1752256547467,0.1233,117720.0,117710.0,2.42033779]
[1752256548068,0.18508,117720.0,117710.0,2.42033779]
[1752256549070,0.7157155,117720.0,117710.0,2.01772]
[1752256549265,0.54588,117720.0,117710.0,2.01772]
[1752256549466,0.54588,117720.0,117710.0,2.01922]
[1752256549671,0.18508,117720.0,117710.0,2.42033779]
[1752256550274,0.18508,117720.0,117710.0,1.92033779]
[1752256551680,0.1233,117720.0,117710.0,1.92033779]
[1752256552178,0.18430837,117720.0,117710.0,1.51922]
[1752256552378,0.18430837,117720.0,117710.0,1.92033779]
[1752256552973,0.1233,117720.0,117710.0,1.92033779]
[1752256553375,0.001,117720.0,117710.0,1.92033779]
[1752256553585,0.001,117720.0,117710.0,2.28113779]
[1752256555290,0.001,117720.0,117710.0,2.78113779]
[1752256561400,0.10083,117730.0,117720.0,0.1713355]
[1752256561593,0.12358,117730.0,117720.0,1.50440108]
[1752256562101,0.0022,117730.0,117720.0,1.50440108]
[1752256562301,0.10103,117730.0,117720.0,1.50440108]
[1752256562604,0.10403,117730.0,117720.0,1.50440108]
[1752256562901,0.12658,117730.0,117720.0,1.50440108]
[1752256563301,0.12458,117730.0,117720.0,1.50440108]
[1752256563500,0.12558,117730.0,117720.0,2.00440108]
[1752256564094,0.12458,117730.0,117720.0,1.2021655]
[1752256564297,0.12458,117730.0,117720.0,2.00440108]
[1752256564698,0.12458,117730.0,117720.0,2.00640108]
[1752256565506,0.12458,117730.0,117720.0,1.60528329]
[1752256567406,0.12358,117730.0,117720.0,1.60628329]
[1752256569501,0.12358,117730.0,117720.0,1.2051655]
[1752256569701,0.12358,117730.0,117720.0,1.61417155]
[1752256574005,0.12358,117730.0,117720.0,1.21305376]
[1752256574211,0.12358,117730.0,117720.0,1.61417155]
[1752256575902,0.18708,117730.0,117720.0,1.21305376]
[1752256576108,0.18708,117730.0,117720.0,1.61417155]
[1752256576514,0.12358,117730.0,117720.0,1.61417155]
[1752256580613,0.12358,117730.0,117720.0,1.61217155]
[1752256580920,0.18697,117730.0,117720.0,1.61517155]
[1752256581512,1.51982668,117730.0,117720.0,0.504]
[1752256581717,1.11870889,117730.0,117720.0,0.504]
[1752256581914,1.18743675,117730.0,117720.0,0.504]
[1752256582110,1.18743675,117730.0,117720.0,0.004]
[1752256582309,1.54632175,117730.0,117720.0,0.004]
[1752256582518,1.62254312,117730.0,117720.0,0.1738355]
[1752256582819,1.62254312,117730.0,117720.0,0.004]
[1752256583118,1.54632175,117730.0,117720.0,0.1738355]
[1752256584317,1.29632175,117730.0,117720.0,0.1738355]
[1752256584513,1.54632175,117730.0,117720.0,0.1738355]
[1752256584713,1.54632175,117730.0,117720.0,0.004]
[1752256584918,0.3249255,117720.0,117710.0,0.0002]
[1752256585214,1.58877245,117720.0,117710.0,0.17005]
[1752256585412,2.10035108,117720.0,117710.0,0.17005]
[1752256585718,2.10035108,117720.0,117710.0,0.0002]
[1752256586014,2.52025508,117720.0,117710.0,0.0002]
[1752256586220,0.3493444,117700.0,117690.0,0.2548022]
[1752256586416,1.523973,117700.0,117690.0,0.2972712]
[1752256587116,1.523973,117700.0,117690.0,0.30506459]
[1752256587311,1.523973,117700.0,117690.0,0.30906459]
[1752256587821,1.523973,117700.0,117690.0,0.3012712]
[1752256588022,1.523973,117700.0,117690.0,0.3062712]
[1752256588222,1.523973,117700.0,117690.0,0.3022712]
[1752256588422,1.46306219,117700.0,117690.0,0.3022712]
[1752256588923,1.52392142,117700.0,117690.0,0.3022712]
[1752256589417,1.52392142,117700.0,117690.0,0.2173334]
[1752256589623,1.52392142,117700.0,117690.0,0.1748788]
[1752256589823,1.52492142,117700.0,117690.0,0.1698788]
[1752256590124,1.52492142,117700.0,117680.0,0.67440455]
[1752256590324,1.11127659,117690.0,117680.0,0.25653785]
[1752256590524,1.11901143,117690.0,117680.0,0.25653785]
[1752256590724,1.17213582,117690.0,117680.0,0.25653785]
[1752256591722,1.11127659,117690.0,117680.0,0.25653785]
[1752256592324,1.17213582,117690.0,117680.0,0.25653785]
[1752256592624,1.17213582,117690.0,117680.0,0.25753785]
[1752256592824,1.75997582,117690.0,117680.0,0.25753785]
[1752256593424,1.11127659,117690.0,117680.0,0.25753785]
[1752256597931,1.11127659,117690.0,117680.0,0.25853785]
[1752256600131,0.7101588,117690.0,117680.0,0.25853785]
[1752256600332,1.11127659,117690.0,117680.0,0.25853785]
[1752256602034,1.11127659,117690.0,117680.0,0.21606505]
[1752256605735,1.11127659,117690.0,117680.0,0.38609505]
[1752256605936,1.11147659,117690.0,117680.0,0.38629505]
[1752256608137,0.7103588,117690.0,117680.0,0.38629505]
[1752256608337,1.11147659,117690.0,117680.0,0.38629505]
[1752256609336,1.17233582,117690.0,117680.0,0.38629505]
[1752256612342,1.11147659,117690.0,117680.0,0.38629505]
[1752256613250,1.17242178,117690.0,117680.0,0.38629505]
[1752256613446,1.11147659,117690.0,117680.0,0.38629505]
[1752256615448,0.78658017,117690.0,117680.0,0.38629505]
[1752256615650,1.18769796,117690.0,117680.0,0.38629505]
[1752256618346,0.31693762,117690.0,117680.0,1.73739284]
[1752256618548,0.17732625,117690.0,117680.0,2.49931063]
[1752256618749,0.11629,117690.0,117680.0,2.49931063]
[1752256619047,0.11629,117690.0,117680.0,2.66925463]
[1752256619048,0.06123625,117690.0,117680.0,2.66925463]
[1752256619238,0.17629625,117700.0,117690.0,0.1698787]
[1752256619445,0.11526,117700.0,117690.0,1.10332649]
[1752256619950,0.11526,117700.0,117690.0,1.60332649]
[1752256621347,0.11626,117700.0,117690.0,1.60332649]
[1752256623054,0.11626,117700.0,117690.0,1.60532649]
[1752256623247,0.11626,117700.0,117690.0,1.2042087]
[1752256623453,0.11626,117700.0,117690.0,1.60532649]
[1752256623652,0.17493,117700.0,117690.0,2.19292649]
[1752256625254,0.17393,117700.0,117690.0,2.19292649]
[1752256625455,0.17393,117700.0,117690.0,2.19492649]
[1752256628361,0.11526,117700.0,117690.0,2.19492649]
[1752256632662,0.11526,117700.0,117690.0,2.02489649]
[1752256632853,0.11526,117700.0,117690.0,2.19492649]
[1752256634056,0.09179,117700.0,117690.0,2.19492649]
[1752256634258,0.19147737,117710.0,117700.0,0.1713643]
[1752256634460,0.19147737,117710.0,117700.0,1.10331209]
[1752256635565,0.19147737,117710.0,117700.0,1.10531209]
[1752256638268,0.19147737,117710.0,117700.0,0.7041943]
[1752256638469,0.19167737,117710.0,117700.0,1.10551209]
[1752256640968,0.25271362,117710.0,117700.0,1.10551209]
[1752256645372,0.25271362,117710.0,117700.0,0.7043943]
[1752256645573,0.25271362,117710.0,117700.0,1.10551209]
[1752256647273,0.19167737,117710.0,117700.0,1.10551209]
[1752256648275,0.26789874,117710.0,117700.0,1.10551209]
[1752256650472,0.26789874,117710.0,117700.0,0.74471209]
[1752256650673,0.26789874,117710.0,117700.0,1.10551209]
[1752256654774,0.26789874,117710.0,117700.0,0.7043943]
[1752256654973,0.26789874,117710.0,117700.0,1.10551209]
[1752256658885,1.18461536,117710.0,117700.0,0.0022]
[1752256659084,0.2285887,117690.0,117680.0,0.21405655]
[1752256659379,1.10029649,117690.0,117680.0,0.00169945]
[1752256659576,1.46109649,117690.0,117680.0,0.58865945]
[1752256659886,1.93866765,117690.0,117680.0,0.00169945]
[1752256660186,1.56786387,117690.0,117680.0,0.00269945]
[1752256660381,1.64415649,117690.0,117680.0,0.00269945]
[1752256660684,1.46892694,117690.0,117680.0,0.00269945]
[1752256660878,1.66879443,117690.0,117680.0,0.00269945]
[1752256661181,1.91503015,117690.0,117680.0,0.00269945]
[1752256661384,0.2286031,117680.0,117670.0,0.2123731]
[1752256661588,1.60067102,117680.0,117670.0,0.7568565]
[1752256661782,0.1699076,117670.0,117660.0,0.2548687]
[1752256661982,1.36117846,117670.0,117660.0,0.8418687]
[1752256663189,1.16088057,117670.0,117660.0,0.8418687]
[1752256664481,1.16088057,117670.0,117660.0,0.8448687]